bitfinex/quotes_BTCUSD_20240906
["timestamp","ask_amount","ask_price","bid_price","bid_amount"]
[1725628997240,0.525918,57043.0,57042.0,0.16094]
[1725628997483,0.525918,57043.0,57042.0,0.00164]
[1725628997484,0.175306,57043.0,57042.0,0.00164]
[1725628997966,0.175302,57045.0,57042.0,0.00164]
[1725628998208,0.01,57067.0,57042.0,0.00164]
[1725628998209,0.1604,57060.0,57042.0,0.013]
[1725628998463,0.52650515,57057.0,57042.0,0.025]
[1725628998688,0.525918,57043.0,57042.0,0.013]
[1725628998923,0.525918,57043.0,57042.0,0.027]
[1725628998924,1.419742,57043.0,57042.0,0.027]
[1725628999419,1.419742,57043.0,57042.0,0.013]
[1725628999660,1.227208,57040.0,57039.0,0.00021105]
[1725628999958,1.577839,57040.0,57039.0,0.00021105]
[1725629000207,2.02847,57040.0,57039.0,0.00021105]
[1725629000434,2.38957,57040.0,57039.0,0.00021105]
[1725629000688,2.038939,57040.0,57039.0,0.00021105]
[1725629001417,1.688308,57040.0,57039.0,0.00021105]
[1725629001879,1.692308,57040.0,57039.0,0.00021105]
[1725629002121,1.231208,57040.0,57039.0,0.00021105]
[1725629002356,1.227208,57040.0,57039.0,0.00021105]
[1725629002602,0.004,57040.0,57039.0,0.00021105]
[1725629002861,0.175315,57040.0,57039.0,0.00021105]
[1725629003107,0.003,57040.0,57039.0,0.00121105]
[1725629003562,0.003,57040.0,57039.0,0.00021105]
[1725629003563,0.175315,57040.0,57039.0,0.00021105]
[1725629003790,0.175311,57042.0,57039.0,0.00121105]
[1725629004055,0.01,57059.0,57039.0,0.00121105]
[1725629004056,0.3505,57062.0,57039.0,0.00121105]
[1725629004303,0.3505,57062.0,57048.0,0.17529]
[1725629004304,0.175279,57052.0,57048.0,0.17529]
[1725629004520,0.3505,57062.0,57048.0,0.17529]
[1725629004521,0.1915,57068.0,57055.0,0.350538]
[1725629004763,0.1915,57068.0,57057.0,0.175262]
[1725629004981,0.175252,57061.0,57057.0,0.175262]
[1725629005223,0.350478,57065.0,57056.0,0.1588]
[1725629005224,0.350496,57062.0,57056.0,0.1588]
[1725629005507,0.350486,57064.0,57056.0,0.334063]
[1725629005757,0.175254,57060.0,57056.0,0.334063]
[1725629005995,0.722732,57073.0,57057.0,0.175263]
[1725629005996,0.175253,57061.0,57057.0,0.175263]
[1725629006241,0.01,57081.0,57056.0,0.1588]
[1725629006242,0.707095,57079.0,57059.0,0.2085]
[1725629006481,0.60455241,57099.0,57059.0,0.2085]
[1725629006482,0.175215,57073.0,57060.0,0.17901558]
[1725629006803,0.175229,57069.0,57065.0,0.175237]
[1725629006958,0.35043,57073.0,57067.0,0.17523]
[1725629007181,0.3567,57084.0,57066.0,0.175234]
[1725629007182,0.175225,57070.0,57066.0,0.175234]
[1725629007396,0.175223,57070.0,57061.0,0.0035044]
[1725629007613,0.350436,57072.0,57061.0,0.0035044]
[1725629007614,0.175219,57072.0,57067.0,0.175232]
[1725629007837,0.175218,57072.0,57067.0,0.175231]
[1725629008075,0.175221,57071.0,57065.0,0.175236]
[1725629008303,0.175228,57069.0,57064.0,0.175241]
[1725629008544,0.3567,57084.0,57062.0,0.17551096]
[1725629008545,0.350449,57070.0,57062.0,0.17551096]
[1725629008781,0.3567,57084.0,57059.0,0.2085]
[1725629009026,0.175254,57060.0,57059.0,0.2085]
[1725629009504,0.350436,57072.0,57066.0,0.175233]
[1725629009739,0.175214,57073.0,57065.0,0.350475]
[1725629009973,0.175221,57071.0,57065.0,0.17551096]
[1725629010213,0.175224,57070.0,57067.0,0.011]
[1725629010426,0.175225,57070.0,57067.0,0.011]
[1725629010705,0.000816,57074.0,57073.0,0.175214]
[1725629010923,0.000816,57074.0,57073.0,0.91295642]
[1725629011164,0.000816,57074.0,57073.0,1.25988096]
[1725629012077,0.000816,57074.0,57073.0,0.2083]
[1725629012981,0.000816,57074.0,57073.0,0.92695661]
[1725629013474,0.000816,57074.0,57073.0,0.92675661]
[1725629013928,0.000816,57074.0,57073.0,1.29118461]
[1725629014160,0.000816,57074.0,57073.0,1.80431261]
[1725629014161,0.00060522,57074.0,57073.0,1.80431261]
[1725629015065,0.00060522,57074.0,57073.0,1.83731261]
[1725629015307,0.38357497,57092.0,57073.0,0.40271461]
[1725629015556,0.52850515,57114.0,57090.0,0.350318]
[1725629015557,0.52650515,57097.0,57090.0,0.350318]
[1725629015787,0.175137,57098.0,57092.0,0.350306]
[1725629016022,0.351066,57102.0,57092.0,0.35380873]
[1725629016023,0.175135,57099.0,57092.0,0.35380873]
[1725629016264,0.175135,57099.0,57083.0,0.1653]
[1725629016265,0.000815,57102.0,57087.0,0.350341]
[1725629016488,0.000815,57102.0,57083.0,0.1653]
[1725629016489,0.000815,57102.0,57091.0,0.1927]
[1725629016718,0.175174,57086.0,57085.0,0.1927]
[1725629016950,0.175174,57086.0,57083.0,0.1653]
[1725629016951,0.17518,57084.0,57083.0,0.1653]
[1725629017179,0.175191,57081.0,57077.0,0.3607]
[1725629017411,0.2127,57095.0,57078.0,0.17551096]
[1725629017641,0.2127,57095.0,57077.0,0.3607]
[1725629017858,0.2127,57095.0,57078.0,0.00350329]
[1725629018085,0.350345,57087.0,57078.0,0.00350329]
[1725629018325,0.175186,57082.0,57078.0,0.00350329]
[1725629018521,0.175186,57082.0,57078.0,0.17870129]
[1725629018748,0.350324,57090.0,57078.0,0.00350329]
[1725629018993,0.350345,57087.0,57078.0,0.00350329]
[1725629019211,0.350343,57087.0,57081.0,0.175188]
[1725629019427,0.525516,57087.0,57082.0,0.175185]
[1725629019673,0.175175,57086.0,57082.0,0.175185]
[1725629019927,0.38357497,57100.0,57083.0,0.17551096]
[1725629020157,0.175157,57092.0,57088.0,0.175167]
[1725629020373,0.175157,57092.0,57083.0,0.17551096]
[1725629020374,0.350298,57095.0,57083.0,0.17551096]
[1725629020608,0.175168,57088.0,57083.0,0.17551096]
[1725629020852,0.175166,57089.0,57083.0,0.17551096]
[1725629021086,0.350233,57105.0,57086.0,0.175171]
[1725629021339,0.000815,57102.0,57087.0,0.17551096]
[1725629021582,0.000815,57102.0,57086.0,0.3608]
[1725629021583,0.350321,57091.0,57086.0,0.3608]
[1725629021808,0.175168,57088.0,57086.0,0.3608]
[1725629022021,0.525513,57087.0,57086.0,0.3608]
[1725629022318,0.175171,57087.0,57086.0,0.3608]
[1725629022559,0.52554,57084.0,57083.0,0.008]
[1725629022788,0.8759,57084.0,57083.0,0.008]
[1725629023256,0.175187,57082.0,57080.0,0.2014]
[1725629023484,0.350348,57087.0,57080.0,0.2014]
[1725629023485,0.175189,57081.0,57080.0,0.2014]
[1725629023735,0.175189,57081.0,57076.0,0.175203]
[1725629023736,0.175208,57076.0,57075.0,0.199]
[1725629023969,0.525617,57076.0,57075.0,0.199]
[1725629024208,0.175202,57077.0,57075.0,0.199]
[1725629024426,0.175204,57076.0,57075.0,0.199]
[1725629024664,0.525613,57076.0,57075.0,0.199]
[1725629024909,0.175208,57075.0,57074.0,0.1528]
[1725629025137,0.175208,57075.0,57073.0,0.001632]
[1725629025138,0.175211,57074.0,57073.0,0.001632]
[1725629025377,0.876055,57074.0,57073.0,0.001632]
[1725629026307,1.082055,57074.0,57073.0,0.001632]
[1725629026515,1.432477,57074.0,57073.0,0.015632]
[1725629027693,0.350386,57080.0,57073.0,0.001632]
[1725629027697,0.3594,57083.0,57073.0,0.001632]
[1725629027914,0.876055,57074.0,57073.0,0.001632]
[1725629028363,1.227477,57074.0,57073.0,0.001632]
[1725629028579,0.877055,57074.0,57073.0,0.001632]
[1725629028821,0.176211,57074.0,57073.0,0.001632]
[1725629029051,0.176211,57074.0,57073.0,0.005632]
[1725629029302,0.176211,57074.0,57073.0,0.001632]
[1725629029573,0.176211,57074.0,57073.0,0.007632]
[1725629029574,1.236455,57074.0,57073.0,0.007632]
[1725629029789,2.036299,57074.0,57073.0,0.001532]
[1725629030011,2.419721,57074.0,57073.0,0.001532]
[1725629030279,2.419721,57074.0,57073.0,0.024532]
[1725629030519,2.419721,57074.0,57073.0,0.013532]
[1725629030741,2.419721,57074.0,57073.0,0.005532]
[1725629030954,2.45842274,57074.0,57073.0,0.005532]
[1725629031422,2.45942274,57074.0,57073.0,0.005532]
[1725629031848,2.07600074,57074.0,57073.0,0.005532]
[1725629032068,2.07600074,57074.0,57073.0,0.001532]
[1725629032320,2.07550074,57074.0,57073.0,0.002532]
[1725629033448,2.07450074,57074.0,57073.0,0.002532]
[1725629033668,2.07550074,57074.0,57073.0,0.003532]
[1725629034114,2.08550074,57074.0,57073.0,0.003532]
[1725629034336,2.08550074,57074.0,57052.0,0.52650515]
[1725629034337,1.226928,57053.0,57052.0,0.52650515]
[1725629034775,1.22697,57051.0,57050.0,0.001632]
[1725629036383,1.22697,57051.0,57050.0,0.006632]
[1725629036606,1.22697,57051.0,57050.0,0.001632]
[1725629037068,1.22697,57051.0,57050.0,0.004632]
[1725629037069,1.22675919,57051.0,57050.0,0.004632]
[1725629037787,1.22675919,57051.0,57050.0,0.009632]
[1725629038005,1.22175919,57051.0,57050.0,0.009632]
[1725629038219,0.17007019,57051.0,57050.0,0.004632]
[1725629038436,0.350557,57052.0,57050.0,0.001632]
[1725629038647,0.11127016,57065.0,57050.0,0.005632]
[1725629038648,0.876407,57051.0,57050.0,0.005632]
[1725629038856,1.22897,57051.0,57050.0,0.005632]
[1725629039131,1.22697,57051.0,57050.0,0.005432]
[1725629039354,1.22697,57051.0,57050.0,0.009432]
[1725629040241,1.22697,57051.0,57050.0,0.005432]
[1725629040466,1.22697,57051.0,57050.0,0.010432]
[1725629041112,0.876407,57051.0,57050.0,0.010432]
[1725629041846,1.22697,57051.0,57050.0,0.010432]
[1725629042717,1.22697,57051.0,57050.0,0.006432]
[1725629043025,1.349667,57051.0,57050.0,0.006432]
[1725629043236,1.99923,57051.0,57050.0,0.008432]
[1725629043495,2.553093,57051.0,57050.0,1e-06]
[1725629043706,2.553093,57051.0,57025.0,0.2059]
[1725629043707,1.227422,57030.0,57025.0,0.2059]
[1725629044787,1.227422,57030.0,57023.0,0.154]
[1725629045000,1.227422,57030.0,57018.0,0.1957]
[1725629045227,1.578114,57030.0,57018.0,0.1957]
[1725629045542,1.578114,57030.0,57015.0,0.00164]
[1725629045543,1.878414,57030.0,57015.0,0.00164]
[1725629045775,1.527722,57030.0,57015.0,0.00164]
[1725629046003,1.327422,57030.0,57015.0,0.00164]
[1725629046235,1.4545938,57030.0,57015.0,0.00164]
[1725629046463,1.327422,57030.0,57016.0,0.175387]
[1725629046684,1.333422,57030.0,57029.0,0.002632]
[1725629046925,1.327422,57030.0,57029.0,0.001632]
[1725629047635,1.327422,57030.0,57029.0,0.004632]
[1725629047865,1.4601642,57030.0,57029.0,0.004632]
[1725629048329,1.4601642,57030.0,57029.0,0.009632]
[1725629048782,1.4601642,57030.0,57029.0,0.006632]
[1725629049018,1.6629642,57030.0,57029.0,0.003632]
[1725629049280,1.6629642,57030.0,57029.0,0.005632]
[1725629049519,2.0136562,57030.0,57029.0,0.007632]
[1725629049971,2.19044847,57030.0,57029.0,0.001632]
[1725629050211,2.20044847,57030.0,57029.0,0.001632]
[1725629050432,2.23744847,57030.0,57029.0,0.002632]
[1725629050689,2.23744847,57030.0,57029.0,0.001632]
[1725629050690,2.57414047,57030.0,57029.0,0.001632]
[1725629050934,2.23344847,57030.0,57029.0,0.001632]
[1725629051398,2.58414047,57030.0,57029.0,0.001632]
[1725629051856,2.59814047,57030.0,57029.0,0.002632]
[1725629052063,2.59814047,57030.0,57029.0,0.003632]
[1725629052283,2.59314047,57030.0,57029.0,0.002632]
[1725629052500,2.23344847,57030.0,57029.0,0.001632]
[1725629052746,2.23344847,57030.0,57029.0,0.002632]
[1725629052747,1.34941427,57030.0,57029.0,0.002632]
[1725629053230,1.70010627,57030.0,57029.0,0.002632]
[1725629053456,1.70210627,57030.0,57029.0,0.002632]
[1725629053691,1.16306827,57030.0,57029.0,0.001632]
[1725629053920,1.33841427,57030.0,57029.0,0.002632]
[1725629054158,1.340422,57030.0,57029.0,0.002632]
[1725629054857,1.691114,57030.0,57029.0,0.002632]
[1725629055086,1.697714,57030.0,57029.0,0.003632]
[1725629055332,1.911514,57030.0,57029.0,0.003632]
[1725629055561,1.923514,57030.0,57029.0,0.002632]
[1725629056028,1.924514,57030.0,57029.0,0.002632]
[1725629056472,1.911514,57030.0,57029.0,0.001632]
[1725629056707,1.332022,57030.0,57029.0,0.002632]
[1725629056966,1.324022,57030.0,57029.0,0.001632]
[1725629057430,1.326022,57030.0,57029.0,0.001632]
[1725629057928,0.003,57030.0,57029.0,0.55534296]
[1725629058458,0.02748582,57033.0,57029.0,0.55534296]
[1725629058459,0.02748582,57033.0,57032.0,0.52602]
[1725629058463,0.38357497,57045.0,57032.0,0.52602]
[1725629058464,0.38357497,57045.0,57044.0,0.175303]
[1725629058693,0.02747582,57041.0,57040.0,1.070777]
[1725629058932,0.000816,57051.0,57044.0,0.1942]
[1725629059624,0.35058,57049.0,57044.0,0.1942]
[1725629059870,0.525874,57048.0,57044.0,0.1942]
[1725629060090,0.525874,57048.0,57044.0,0.2022]
[1725629060321,0.175294,57047.0,57044.0,0.2092]
[1725629060551,0.175294,57047.0,57044.0,0.2022]
[1725629060792,0.17529,57049.0,57044.0,0.2022]
[1725629061021,0.17529,57049.0,57044.0,0.2072]
[1725629061249,0.350572,57050.0,57044.0,0.2072]
[1725629061473,0.35058,57049.0,57044.0,0.2072]
[1725629061695,0.175298,57046.0,57044.0,0.1992]
[1725629061918,0.350572,57050.0,57044.0,0.2062]
[1725629061919,0.175295,57047.0,57044.0,0.2062]
[1725629062171,0.175295,57047.0,57044.0,0.2012]
[1725629062387,0.175297,57046.0,57044.0,0.2012]
[1725629062613,0.001,57047.0,57044.0,0.2062]
[1725629062851,0.001,57046.0,57044.0,0.2072]
[1725629063090,0.1753,57045.0,57044.0,0.2182]
[1725629063330,0.8765,57045.0,57044.0,0.011]
[1725629063583,0.8765,57045.0,57029.0,0.001632]
[1725629063584,0.30871059,57045.0,57032.0,0.1673]
[1725629063792,0.001,57047.0,57032.0,0.1673]
[1725629063793,0.526011,57033.0,57032.0,0.1673]
[1725629064014,0.526011,57033.0,57032.0,0.3584]
[1725629064954,0.175334,57034.0,57032.0,0.3584]
[1725629065614,0.350658,57036.0,57032.0,0.3584]
[1725629065615,0.175337,57033.0,57032.0,0.3584]
[1725629065843,0.176337,57033.0,57032.0,0.3694]
[1725629066091,0.877685,57033.0,57032.0,0.2021]
[1725629066305,1.227359,57033.0,57032.0,0.01]
[1725629066529,0.87673,57030.0,57029.0,0.001632]
[1725629066748,0.526038,57030.0,57029.0,0.001632]
[1725629066999,0.351674,57033.0,57029.0,0.001632]
[1725629067221,0.527011,57033.0,57032.0,0.01]
[1725629067448,0.526011,57033.0,57032.0,0.01]
[1725629067693,0.001,57034.0,57032.0,0.01]
[1725629067915,0.176336,57034.0,57032.0,0.01]
[1725629068153,0.175337,57033.0,57032.0,0.01]
[1725629068419,0.175337,57033.0,57029.0,0.001632]
[1725629068654,0.175328,57036.0,57031.0,0.17534]
[1725629068877,0.175338,57033.0,57029.0,0.18798]
[1725629069104,0.11101455,57044.0,57029.0,0.18798]
[1725629069105,0.175327,57036.0,57032.0,0.175338]
[1725629069338,0.175327,57036.0,57029.0,0.012632]
[1725629069339,0.175331,57035.0,57031.0,0.175342]
[1725629069568,0.001,57033.0,57032.0,0.011]
[1725629069791,0.001,57033.0,57032.0,0.2158]
[1725629069996,0.001,57033.0,57032.0,0.2148]
[1725629070214,0.001,57033.0,57032.0,0.2048]
[1725629070625,0.17712596,57033.0,57032.0,0.2048]
[1725629070877,0.00078896,57033.0,57032.0,0.2048]
[1725629071062,0.17612596,57033.0,57032.0,0.2048]
[1725629071502,0.000817,57033.0,57032.0,0.2048]
[1725629071730,0.001817,57033.0,57032.0,1.0925]
[1725629071953,0.001817,57033.0,57032.0,1.78519096]
[1725629072219,0.002817,57033.0,57032.0,2.15687096]
[1725629072433,0.002817,57033.0,57032.0,2.25687096]
[1725629072855,0.001817,57033.0,57032.0,2.24787096]
[1725629073075,0.000817,57033.0,57032.0,2.23487096]
[1725629073294,0.002817,57033.0,57032.0,2.25787096]
[1725629073761,0.001817,57033.0,57032.0,1.89519096]
[1725629074003,0.001817,57033.0,57032.0,1.27]
[1725629074004,0.002817,57033.0,57032.0,1.27]
[1725629075141,0.001817,57033.0,57032.0,1.259]
[1725629075576,0.001817,57033.0,57032.0,1.273]
[1725629075790,0.001817,57033.0,57032.0,0.57164]
[1725629076055,0.000817,57033.0,57032.0,1.248]
[1725629076296,0.000817,57033.0,57032.0,0.3853]
[1725629076517,0.176154,57033.0,57032.0,0.3993]
[1725629076746,0.176154,57033.0,57032.0,0.028]
[1725629076747,0.526828,57033.0,57032.0,0.028]
[1725629076963,0.877502,57033.0,57032.0,0.028]
[1725629077207,0.877502,57033.0,57032.0,0.014]
[1725629077208,0.526828,57033.0,57032.0,0.014]
[1725629077665,0.877502,57033.0,57032.0,0.028]
[1725629077885,0.877502,57033.0,57029.0,0.001632]
[1725629077886,0.87673,57030.0,57029.0,0.001632]
[1725629078318,1.227422,57030.0,57029.0,0.001632]
[1725629079028,1.420722,57030.0,57029.0,0.001632]
[1725629079271,1.227422,57030.0,57029.0,0.001632]
[1725629079939,1.40398226,57030.0,57029.0,0.020632]
[1725629080153,1.50398226,57030.0,57029.0,0.015632]
[1725629080374,1.85467426,57030.0,57029.0,0.015632]
[1725629080594,2.02017426,57030.0,57029.0,0.015632]
[1725629080817,2.01917426,57030.0,57029.0,0.015632]
[1725629081267,2.01917426,57030.0,57029.0,0.001632]
[1725629081535,2.01917426,57030.0,57029.0,0.002632]
[1725629082009,1.843614,57030.0,57029.0,0.001632]
[1725629082453,1.846614,57030.0,57029.0,0.001632]
[1725629082891,1.847614,57030.0,57029.0,0.002632]
[1725629083115,1.842614,57030.0,57029.0,0.001632]
[1725629083466,1.844614,57030.0,57029.0,0.001632]
[1725629083947,2.02017426,57030.0,57029.0,0.001632]
[1725629084159,1.844614,57030.0,57029.0,0.001632]
[1725629084329,1.845614,57030.0,57029.0,0.001632]
[1725629084733,1.844614,57030.0,57029.0,0.001632]
[1725629087056,1.680114,57030.0,57029.0,0.001632]
[1725629089133,1.85567426,57030.0,57029.0,0.001632]
[1725629089322,1.227723,57016.0,57015.0,0.00164]
[1725629090634,1.227723,57016.0,57015.0,0.00864]
[1725629092875,1.23875437,57016.0,57015.0,0.00864]
[1725629093549,1.59053237,57016.0,57015.0,0.01664]
[1725629093819,1.33975437,57016.0,57015.0,0.01664]
[1725629094484,1.86609263,57016.0,57015.0,0.01664]
[1725629094928,1.86509263,57016.0,57015.0,0.00864]
[1725629095146,1.69153237,57016.0,57015.0,0.00864]
[1725629095371,2.04231037,57016.0,57015.0,0.00864]
[1725629095593,1.74590069,57016.0,57015.0,0.00864]
[1725629095810,1.74190069,57016.0,57015.0,0.00864]
[1725629096023,1.77539064,57016.0,57015.0,0.00864]
[1725629096256,1.90858258,57016.0,57015.0,0.00864]
[1725629096482,1.92758258,57016.0,57015.0,0.00164]
[1725629096719,2.28236058,57016.0,57015.0,0.00164]
[1725629096961,2.28636058,57016.0,57015.0,0.00264]
[1725629097419,2.29536058,57016.0,57015.0,0.00364]
[1725629097626,2.28636058,57016.0,57015.0,0.00264]
[1725629098303,1.75802232,57016.0,57015.0,0.00264]
[1725629098512,1.75002232,57016.0,57015.0,0.00164]
[1725629098732,1.228024,57002.0,57001.0,0.19714]
[1725629099420,0.53829932,57016.0,56996.0,0.001634]
[1725629099421,0.30871059,57005.0,56996.0,0.001634]
[1725629099639,1.18594759,56997.0,56996.0,0.001634]
[1725629099861,1.53684259,56997.0,56996.0,0.001634]
[1725629100075,1.228132,56997.0,56996.0,0.001634]
[1725629100573,2.02149332,56997.0,56996.0,0.001634]
[1725629100807,2.02149332,56997.0,56996.0,0.003634]
[1725629101048,1.84604632,56997.0,56996.0,0.003634]
[1725629101281,1.98773759,56997.0,56996.0,0.003634]
[1725629102171,1.99891404,56997.0,56996.0,0.001634]
[1725629102455,2.70530904,56997.0,56996.0,0.024634]
[1725629102753,1.260153,56996.0,56995.0,1e-06]
[1725629102960,1.777906,56987.0,56973.0,0.1627]
[1725629103200,0.83525659,56975.0,56974.0,0.00156]
[1725629103418,1.53731859,56975.0,56974.0,0.00156]
[1725629105521,0.877577,56975.0,56974.0,0.00156]
[1725629105961,0.877577,56975.0,56974.0,0.00256]
[1725629106631,0.877577,56975.0,56974.0,0.00156]
[1725629107105,1.53731859,56975.0,56974.0,0.00156]
[1725629107320,1.79105045,56975.0,56974.0,0.00156]
[1725629108220,2.33368145,56975.0,56974.0,0.00156]
[1725629108497,2.36668145,56975.0,56974.0,0.00456]
[1725629108733,2.71771245,56975.0,56974.0,0.00456]
[1725629109232,2.71771245,56975.0,56974.0,0.00156]
[1725629109442,2.22694959,56975.0,56974.0,0.00256]
[1725629109660,2.01434959,56975.0,56974.0,0.00356]
[1725629109878,1.340608,56975.0,56974.0,0.00256]
[1725629110122,1.328608,56975.0,56974.0,0.00256]
[1725629110352,1.342608,56975.0,56974.0,0.00256]
[1725629110559,1.342608,56975.0,56974.0,0.00156]
[1725629110791,1.352608,56975.0,56974.0,0.00256]
[1725629111721,1.366608,56975.0,56974.0,0.00356]
[1725629112155,1.66131859,56975.0,56974.0,0.00256]
[1725629112396,1.64331859,56975.0,56974.0,0.00256]
[1725629113049,1.65031859,56975.0,56974.0,0.00356]
[1725629114191,2.00134959,56975.0,56974.0,0.00356]
[1725629114390,2.43760818,56975.0,56974.0,0.00356]
[1725629115070,2.39340985,56975.0,56974.0,0.00356]
[1725629115295,2.56200985,56975.0,56974.0,0.00356]
[1725629115525,2.91304085,56975.0,56974.0,0.00356]
[1725629115736,2.93304085,56975.0,56974.0,0.00356]
[1725629116605,2.93104085,56975.0,56974.0,0.00356]
[1725629116830,2.92104085,56975.0,56974.0,0.00356]
[1725629117046,2.95855111,56975.0,56974.0,0.00356]
[1725629117762,2.37895985,56975.0,56974.0,0.00356]
[1725629118056,2.03885985,56975.0,56974.0,0.00356]
[1725629118272,2.00134959,56975.0,56974.0,0.00356]
[1725629118491,2.00134959,56975.0,56974.0,0.00100229]
[1725629120472,2.03434959,56975.0,56974.0,0.00100229]
[1725629120685,2.20990985,56975.0,56974.0,0.00100229]
[1725629120925,2.56094085,56975.0,56974.0,0.00100229]
[1725629121135,1.76902,56972.0,56971.0,0.00164]
[1725629121394,1.79202,56972.0,56971.0,0.00164]
[1725629121608,2.41862926,56972.0,56971.0,0.00164]
[1725629122319,1.69172,56972.0,56971.0,0.00164]
[1725629122964,1.69372,56972.0,56971.0,0.00164]
[1725629123185,1.69172,56972.0,56971.0,0.00164]
[1725629123839,1.71472,56972.0,56971.0,0.00164]
[1725629124051,1.73972,56972.0,56971.0,0.00164]
[1725629124264,2.26632926,56972.0,56971.0,0.00164]
[1725629124734,2.26332926,56972.0,56971.0,0.00164]
[1725629125161,2.45672926,56972.0,56971.0,0.00164]
[1725629125367,2.47072926,56972.0,56971.0,0.00164]
[1725629125780,2.82177826,56972.0,56971.0,0.00164]
[1725629125999,2.25154559,56970.0,56966.0,0.00164]
[1725629126231,2.57010585,56970.0,56966.0,0.00164]
[1725629126893,2.09234,56967.0,56966.0,0.00164]
[1725629127111,2.21534,56967.0,56966.0,0.00164]
[1725629127325,2.58642,56967.0,56966.0,0.00164]
[1725629127537,0.02,56961.0,56948.0,0.1963]
[1725629127799,0.526833,56944.0,56943.0,0.00164]
[1725629128028,1.53798759,56944.0,56943.0,0.00164]
[1725629128307,1.63798759,56944.0,56943.0,0.00164]
[1725629128515,1.98920959,56944.0,56943.0,0.00164]
[1725629128731,1.81354785,56944.0,56943.0,0.00164]
[1725629128944,1.63798759,56944.0,56943.0,0.00164]
[1725629129685,1.64098759,56944.0,56943.0,0.00164]
[1725629129906,0.93854359,56944.0,56943.0,0.19004]
[1725629130137,0.93554359,56944.0,56943.0,0.19004]
[1725629130376,1.28676559,56944.0,56943.0,0.19004]
[1725629130600,1.28776559,56944.0,56943.0,0.19004]
[1725629131051,0.93654359,56944.0,56943.0,0.19004]
[1725629131285,1.29076559,56944.0,56943.0,0.19004]
[1725629131517,0.93954359,56944.0,56943.0,0.19004]
[1725629131771,1.28976559,56944.0,56943.0,0.19004]
[1725629132003,1.28676559,56944.0,56943.0,0.19004]
[1725629132513,0.93554359,56944.0,56943.0,0.18504]
[1725629133201,0.58432159,56944.0,56943.0,0.18504]
[1725629133428,0.93654359,56944.0,56943.0,0.18504]
[1725629133657,0.101,56944.0,56943.0,0.34294]
[1725629133889,0.001,56944.0,56943.0,0.34294]
[1725629134352,0.879055,56944.0,56943.0,0.34294]
[1725629134581,0.30871059,56944.0,56943.0,0.34294]
[1725629134872,0.48432159,56944.0,56943.0,0.34294]
[1725629135106,0.175626,56939.0,56938.0,0.00164]
[1725629135616,0.526879,56939.0,56938.0,0.33694]
[1725629136236,0.527879,56939.0,56938.0,0.33694]
[1725629136467,0.001,56939.0,56938.0,0.33694]
[1725629137158,0.176626,56939.0,56938.0,0.33694]
[1725629137430,0.177626,56939.0,56938.0,0.33894]
[1725629139411,0.002,56939.0,56938.0,0.514569]
[1725629139952,0.002,56939.0,56938.0,1.217087]
[1725629140173,0.002,56939.0,56938.0,0.33894]
[1725629140402,0.528879,56939.0,56938.0,0.33894]
[1725629140629,0.880132,56939.0,56938.0,0.33894]
[1725629141097,0.001,56939.0,56938.0,0.33894]
[1725629141392,0.175619,56942.0,56939.0,0.175625]
[1725629141616,0.175619,56942.0,56938.0,0.520569]
[1725629141848,0.351243,56941.0,56938.0,0.34494]
[1725629142077,0.351208,56947.0,56938.0,0.34694]
[1725629142078,0.001,56939.0,56938.0,0.34694]
[1725629142531,0.001,56939.0,56938.0,1.217087]
[1725629143221,0.001,56942.0,56938.0,0.512569]
[1725629143477,0.001,56942.0,56940.0,0.175623]
[1725629143704,0.001,56942.0,56941.0,0.3478]
[1725629143961,0.001,56942.0,56941.0,0.52342]
[1725629144210,0.176429,56944.0,56941.0,0.52342]
[1725629144682,0.175616,56943.0,56941.0,0.3478]
[1725629144905,0.000818,56944.0,56942.0,0.175616]
[1725629145137,0.000818,56944.0,56941.0,0.523419]
[1725629145394,0.175615,56943.0,56941.0,0.3478]
[1725629145614,0.000818,56944.0,56941.0,0.3478]
[1725629145615,0.40077557,56944.0,56941.0,0.3478]
[1725629146087,0.175617,56942.0,56941.0,0.3518]
[1725629146315,0.526851,56942.0,56941.0,0.3518]
[1725629146580,0.175617,56942.0,56941.0,0.3518]
[1725629146825,0.175617,56942.0,56941.0,0.3538]
[1725629147058,0.526851,56942.0,56941.0,0.3538]
[1725629147323,0.175617,56942.0,56941.0,0.3478]
[1725629147558,0.000818,56944.0,56942.0,0.351233]
[1725629147792,0.000818,56944.0,56943.0,0.1849]
[1725629148036,0.176429,56944.0,56943.0,0.1849]
[1725629148297,0.527651,56944.0,56943.0,0.1849]
[1725629148522,0.75199757,56944.0,56943.0,0.1849]
[1725629148999,0.40077557,56944.0,56943.0,0.1849]
[1725629149219,0.527651,56944.0,56943.0,0.1879]
[1725629150694,0.75199757,56944.0,56943.0,0.1899]
[1725629151408,1.10321957,56944.0,56943.0,0.1899]
[1725629151637,1.45444157,56944.0,56943.0,0.005]
[1725629154922,1.45423021,56944.0,56943.0,0.005]
[1725629156783,0.52743964,56944.0,56943.0,0.005]
[1725629161451,0.00060664,56944.0,56943.0,0.005]
[1725629161706,0.17621764,56944.0,56943.0,0.005]
[1725629161945,0.00060664,56944.0,56943.0,1.95795553]
[1725629162203,0.00060664,56944.0,56943.0,1.95764433]
[1725629162449,0.00060664,56944.0,56943.0,2.31087233]
[1725629162689,0.01,56949.0,56948.0,1.551489]
[1725629162922,0.01,56949.0,56948.0,2.07819696]
[1725629163405,0.01,56949.0,56948.0,1.551489]
[1725629163874,0.38357497,56969.0,56967.0,0.1499]
[1725629164107,0.175522,56973.0,56968.0,0.1921]
[1725629164326,0.351852,56975.0,56968.0,0.1921]
[1725629164567,0.351852,56975.0,56970.0,0.175529]